bitfinex/quotes_BTCUSD_20250601
["timestamp","ask_amount","ask_price","bid_price","bid_amount"]
[1748762632318,0.28746188,104380.0,104370.0,0.03228842]
[1748762632559,0.28746188,104380.0,104370.0,0.05021977]
[1748762632983,0.28746188,104380.0,104370.0,0.05022446]
[1748762633334,0.28746188,104380.0,104370.0,0.05022679]
[1748762633528,0.28746188,104380.0,104370.0,0.04125885]
[1748762633733,0.28746188,104380.0,104370.0,0.05022754]
[1748762633983,0.28746188,104380.0,104370.0,0.05022945]
[1748762634123,0.28746188,104380.0,104370.0,0.04126076]
[1748762634338,0.28746188,104380.0,104370.0,0.03229179]
[1748762634541,0.28746188,104380.0,104370.0,0.05022959]
[1748762635279,0.28746188,104380.0,104370.0,0.05023297]
[1748762635689,0.28746188,104380.0,104370.0,0.0502368]
[1748762635890,0.28746188,104380.0,104370.0,0.05023699]
[1748762636093,0.28746188,104380.0,104370.0,0.02332296]
[1748762636295,0.28746188,104380.0,104370.0,0.05023738]
[1748762636504,0.28746188,104380.0,104370.0,0.05023756]
[1748762636841,0.28746188,104380.0,104370.0,0.04126591]
[1748762637026,0.28746188,104380.0,104370.0,0.0502432]
[1748762637534,0.28746188,104380.0,104370.0,0.0502435]
[1748762638105,0.28746188,104380.0,104370.0,0.05024949]
[1748762638559,0.28746188,104380.0,104370.0,0.05025855]
[1748762638734,0.28746188,104380.0,104370.0,0.032303]
[1748762638937,0.28746188,104380.0,104370.0,0.05667416]
[1748762639141,0.28746188,104380.0,104370.0,0.02973403]
[1748762639324,0.28746188,104380.0,104370.0,0.05667422]
[1748762640278,0.28746188,104380.0,104370.0,0.05667424]
[1748762640455,0.28746188,104380.0,104370.0,0.0476942]
[1748762640864,0.28746188,104380.0,104370.0,0.04769423]
[1748762641188,0.28746188,104380.0,104370.0,0.05667433]
[1748762642169,0.28746188,104380.0,104370.0,0.05667481]
[1748762642540,0.30346188,104380.0,104370.0,0.05667481]
[1748762642766,0.30346188,104380.0,104370.0,0.05667508]
[1748762642993,0.31906188,104380.0,104370.0,0.04769473]
[1748762643190,0.31906188,104380.0,104370.0,0.05667508]
[1748762643445,0.31906188,104380.0,104370.0,0.05667512]
[1748762644346,0.36248099,104380.0,104370.0,0.05667647]
[1748762644545,0.36248099,104380.0,104370.0,0.05667648]
[1748762644712,0.34688099,104380.0,104370.0,0.05667649]
[1748762645414,0.30346188,104380.0,104370.0,0.05667649]
[1748762645601,0.28746188,104380.0,104370.0,0.0476957]
[1748762645767,0.28746188,104380.0,104370.0,0.05667653]
[1748762645971,0.28746188,104380.0,104370.0,0.05667652]
[1748762647565,0.28746188,104380.0,104370.0,0.05667651]
[1748762648356,0.28746188,104380.0,104370.0,0.05667649]
[1748762648605,0.28746188,104380.0,104370.0,0.04769567]
[1748762648905,0.28746188,104380.0,104370.0,0.05667649]
[1748762649627,0.28746188,104380.0,104370.0,0.02973403]
[1748762649832,0.28746188,104380.0,104370.0,0.05667649]
[1748762650031,0.28746188,104380.0,104370.0,0.04769567]
[1748762650334,0.28746188,104380.0,104370.0,0.05667649]
[1748762650771,0.28746188,104380.0,104370.0,0.02973403]
[1748762650972,0.28746188,104380.0,104370.0,0.05667649]
[1748762651698,0.28746188,104380.0,104370.0,0.03871485]
[1748762651899,0.28746188,104380.0,104370.0,0.05667649]
[1748762652294,0.28746188,104380.0,104370.0,0.02973403]
[1748762652499,0.28746188,104380.0,104370.0,0.03871485]
[1748762652702,0.32264542,104380.0,104370.0,0.05667649]
[1748762653030,0.32264542,104380.0,104370.0,0.03871485]
[1748762653202,0.32264542,104380.0,104370.0,0.05667649]
[1748762654466,0.28746188,104380.0,104370.0,0.05667651]
[1748762654698,0.28746188,104380.0,104370.0,0.04769569]
[1748762654885,0.28746188,104380.0,104370.0,0.05667652]
[1748762655040,0.28746188,104380.0,104370.0,0.02973403]
[1748762655478,0.28746188,104380.0,104370.0,0.03871486]
[1748762655653,0.28746188,104380.0,104370.0,0.05667653]
[1748762656080,0.28746188,104380.0,104370.0,0.03871486]
[1748762656281,0.28746188,104380.0,104370.0,0.05667653]
[1748762657710,0.28746188,104380.0,104370.0,0.05667661]
[1748762658215,0.28746188,104380.0,104370.0,0.03871489]
[1748762658551,0.28746188,104380.0,104370.0,0.04769575]
[1748762658935,0.28746188,104380.0,104370.0,0.05667667]
[1748762659846,0.28746188,104380.0,104370.0,0.05667669]
[1748762660224,0.28746188,104380.0,104370.0,0.05667674]
[1748762660420,0.30246188,104380.0,104370.0,0.05667674]
[1748762660633,0.30246188,104380.0,104370.0,0.05667676]
[1748762660835,0.30246188,104380.0,104370.0,0.05667682]
[1748762660995,0.31776188,104380.0,104370.0,0.05667685]
[1748762661646,0.31776188,104380.0,104370.0,0.03871497]
[1748762661850,0.31776188,104380.0,104370.0,0.05667685]
[1748762662167,0.31776188,104380.0,104370.0,0.02973403]
[1748762662386,0.31776188,104380.0,104370.0,0.05667644]
[1748762662718,0.31776188,104380.0,104370.0,0.05667641]
[1748762663335,0.31776188,104380.0,104370.0,0.05667631]
[1748762663536,0.31776188,104380.0,104370.0,0.03871472]
[1748762663741,0.31776188,104380.0,104370.0,0.05667628]
[1748762664040,0.31776188,104380.0,104370.0,0.05667627]
[1748762664750,0.31776188,104380.0,104370.0,0.04769553]
[1748762664957,0.31776188,104380.0,104370.0,0.05667626]
[1748762665690,0.31776188,104380.0,104370.0,0.05667623]
[1748762666366,0.31776188,104380.0,104370.0,0.03871476]
[1748762666570,0.31776188,104380.0,104370.0,0.0566762]
[1748762667130,0.31776188,104380.0,104370.0,0.04769548]
[1748762667294,0.31776188,104380.0,104370.0,0.0566762]
[1748762667499,0.31776188,104380.0,104370.0,0.0476955]
[1748762667835,0.31776188,104380.0,104370.0,0.03871475]
[1748762668076,0.31776188,104380.0,104370.0,0.0566762]
[1748762668509,0.39782571,104380.0,104370.0,0.0566762]
[1748762668716,0.39782571,104380.0,104370.0,0.05667624]
[1748762669069,0.39782571,104380.0,104370.0,0.03871477]
[1748762669271,0.39782571,104380.0,104370.0,0.05667628]
[1748762669643,0.39782571,104380.0,104370.0,0.05667608]
[1748762670145,0.38282571,104380.0,104370.0,0.05667608]
[1748762670536,0.30276188,104380.0,104370.0,0.05667604]
[1748762670937,0.30276188,104380.0,104370.0,0.02973403]
[1748762671207,0.30276188,104380.0,104370.0,0.05667592]
[1748762671501,0.30276188,104380.0,104370.0,0.03743466]
[1748762671843,0.30276188,104380.0,104370.0,0.02845403]
[1748762672043,0.30276188,104380.0,104370.0,0.03743462]
[1748762672445,0.30276188,104380.0,104370.0,0.03743458]
[1748762672643,0.30276188,104380.0,104370.0,0.02845403]
[1748762672865,0.30276188,104380.0,104370.0,0.03743458]
[1748762673600,0.30276188,104380.0,104370.0,0.03743457]
[1748762674472,0.38292571,104380.0,104370.0,0.02845403]
[1748762674633,0.38292571,104380.0,104370.0,0.03743453]
[1748762674838,0.38292571,104380.0,104370.0,0.02845403]
[1748762675045,0.38292571,104380.0,104370.0,0.03743453]
[1748762675723,0.38292571,104380.0,104370.0,0.03743451]
[1748762676205,0.38292571,104380.0,104370.0,0.02845403]
[1748762676328,0.38292571,104380.0,104370.0,0.03743451]
[1748762676533,0.38292571,104380.0,104370.0,0.0374345]
[1748762677820,0.38292571,104380.0,104370.0,0.02845403]
[1748762677983,0.38292571,104380.0,104370.0,0.03743448]
[1748762678184,0.38292571,104380.0,104370.0,0.03743446]
[1748762678553,0.30276188,104380.0,104370.0,0.03743446]
[1748762679850,0.30276188,104380.0,104370.0,0.02845403]
[1748762680011,0.30276188,104380.0,104370.0,0.03743446]
[1748762680208,0.30276188,104380.0,104370.0,0.03743444]
[1748762680573,0.31936188,104380.0,104370.0,0.03743444]
[1748762680797,0.30406188,104380.0,104370.0,0.03743444]
[1748762681000,0.28746188,104380.0,104370.0,0.03743444]
[1748762681904,0.28746188,104380.0,104370.0,0.03743445]
[1748762682941,0.28746188,104380.0,104370.0,0.03743443]
[1748762683174,0.28746188,104380.0,104370.0,0.02845403]
[1748762683354,0.28746188,104380.0,104370.0,0.05539524]
[1748762683516,0.28746188,104380.0,104370.0,0.05539525]
[1748762683936,0.28746188,104380.0,104370.0,0.05539526]
[1748762684608,0.32543042,104380.0,104370.0,0.05539526]
[1748762684924,0.32543042,104380.0,104370.0,0.05539527]
[1748762685257,0.32543042,104380.0,104370.0,0.05539529]
[1748762685460,0.32543042,104380.0,104370.0,0.02845403]
[1748762685696,0.32543042,104380.0,104370.0,0.05539527]
[1748762687357,0.32543042,104380.0,104370.0,0.05539526]
[1748762688413,0.32543042,104380.0,104370.0,0.05539529]
[1748762688742,0.32543042,104380.0,104370.0,0.05539531]
[1748762688930,0.32543042,104380.0,104370.0,0.0553953]
[1748762689993,0.32543042,104380.0,104370.0,0.05539533]
[1748762690163,0.32543042,104380.0,104370.0,0.02845403]
[1748762690367,0.32543042,104380.0,104370.0,0.05539536]
[1748762692380,0.32543042,104380.0,104370.0,0.02845403]
[1748762692993,0.32543042,104380.0,104370.0,0.05539565]
[1748762693220,0.32543042,104380.0,104370.0,0.05539608]
[1748762693612,0.32543042,104380.0,104370.0,0.02845403]
[1748762693815,0.32543042,104380.0,104370.0,0.03743478]
[1748762694194,0.32543042,104380.0,104370.0,0.05539629]
[1748762694571,0.28746188,104380.0,104370.0,0.02845403]
[1748762694782,0.28746188,104380.0,104370.0,0.05539629]
[1748762695525,0.28746188,104380.0,104370.0,0.05539649]
[1748762696017,0.28746188,104380.0,104370.0,0.05539659]
[1748762696487,0.28746188,104380.0,104370.0,0.04641575]
[1748762696671,0.28746188,104380.0,104370.0,0.05539661]
[1748762696838,0.36449571,104380.0,104370.0,0.05539661]
[1748762697247,0.37969571,104380.0,104370.0,0.05539661]
[1748762697446,0.39619571,104380.0,104370.0,0.05539661]
[1748762697673,0.39619571,104380.0,104370.0,0.05539684]
[1748762697885,0.39619571,104380.0,104370.0,0.05539731]
[1748762699095,0.39619571,104380.0,104370.0,0.02845403]
[1748762699307,0.39619571,104380.0,104370.0,0.0553973]
[1748762700828,0.39619571,104380.0,104370.0,0.05155568]
[1748762701272,0.39619571,104380.0,104370.0,0.05155567]
[1748762701481,0.37969571,104380.0,104370.0,0.02461241]
[1748762701687,0.37969571,104380.0,104370.0,0.05155566]
[1748762702431,0.37969571,104380.0,104370.0,0.04257458]
[1748762702626,0.39519571,104380.0,104370.0,0.02461241]
[1748762702771,0.39519571,104380.0,104370.0,0.05155584]
[1748762702978,0.39519571,104380.0,104370.0,0.05155511]
[1748762704190,0.39519571,104380.0,104370.0,0.03359321]
[1748762704375,0.39519571,104380.0,104370.0,0.05155482]
[1748762704582,0.39519571,104380.0,104370.0,0.05155481]
[1748762704809,0.39519571,104380.0,104370.0,0.05155479]
[1748762705577,0.39519571,104380.0,104370.0,0.05155466]
[1748762706024,0.39519571,104380.0,104370.0,0.0515546]
[1748762706449,0.39519571,104380.0,104370.0,0.05155457]
[1748762707514,0.39519571,104380.0,104370.0,0.05155445]
[1748762707697,0.39519571,104380.0,104370.0,0.05155439]
[1748762708257,0.39519571,104380.0,104370.0,0.02461241]
[1748762708466,0.31816188,104380.0,104370.0,0.05155452]
[1748762709302,0.31816188,104380.0,104370.0,0.04257382]
[1748762709463,0.31816188,104380.0,104370.0,0.05155434]
[1748762709658,0.31816188,104380.0,104370.0,0.02461241]
[1748762709879,0.31816188,104380.0,104370.0,0.05155397]
[1748762710081,0.31816188,104380.0,104370.0,0.05155364]
[1748762710847,0.28746188,104380.0,104370.0,0.05155356]
[1748762711475,0.28746188,104380.0,104370.0,0.05155335]
[1748762712500,0.28746188,104380.0,104370.0,0.05155329]
[1748762712702,0.28746188,104380.0,104370.0,0.05155317]
[1748762713104,0.28746188,104380.0,104370.0,0.03359266]
[1748762713328,0.28746188,104380.0,104370.0,0.05155308]
[1748762713608,0.28746188,104380.0,104370.0,0.03359266]
[1748762713784,0.28746188,104380.0,104370.0,0.05155302]
[1748762714406,0.28746188,104380.0,104370.0,0.05155296]
[1748762714956,0.28746188,104380.0,104370.0,0.05155298]
[1748762715159,0.28746188,104380.0,104370.0,0.02461241]
[1748762715407,0.28746188,104380.0,104370.0,0.05155302]
[1748762715653,0.36448771,104380.0,104370.0,0.05155302]
[1748762716057,0.36448771,104380.0,104370.0,0.05155299]
[1748762716611,0.36448771,104380.0,104370.0,0.05155303]
[1748762716819,0.36448771,104380.0,104370.0,0.05155304]
[1748762717824,0.36448771,104380.0,104370.0,0.0515531]
[1748762718621,0.36448771,104380.0,104370.0,0.05155305]
[1748762719190,0.36448771,104380.0,104370.0,0.05155307]
[1748762719397,0.36448771,104380.0,104370.0,0.05155306]
[1748762719594,0.36448771,104380.0,104370.0,0.05155307]
[1748762721021,0.36448771,104380.0,104370.0,0.05155313]
[1748762721217,0.36448771,104380.0,104370.0,0.03359265]
[1748762721420,0.36448771,104380.0,104370.0,0.02461241]
[1748762721626,0.36448771,104380.0,104370.0,0.05155313]
[1748762722669,0.36448771,104380.0,104370.0,0.05155316]
[1748762723107,0.39718771,104380.0,104370.0,0.02461241]
[1748762723300,0.39718771,104380.0,104370.0,0.05155316]
[1748762723529,0.39718771,104380.0,104370.0,0.05155317]
[1748762723772,0.39718771,104380.0,104370.0,0.02461241]
[1748762723986,0.39718771,104380.0,104370.0,0.05155317]
[1748762724652,0.39718771,104380.0,104370.0,0.05155304]
[1748762725710,0.39718771,104380.0,104370.0,0.05155289]
[1748762726101,0.39718771,104380.0,104370.0,0.0515529]
[1748762727397,0.39718771,104380.0,104370.0,0.05155294]
[1748762727568,0.39718771,104380.0,104370.0,0.04257276]
[1748762727770,0.39718771,104380.0,104370.0,0.05155293]
[1748762728041,0.39718771,104380.0,104370.0,0.05155295]
[1748762728243,0.39718771,104380.0,104370.0,0.05155296]
[1748762728442,0.39718771,104380.0,104370.0,0.05155294]
[1748762728873,0.39718771,104380.0,104370.0,0.05155292]
[1748762729226,0.39718771,104380.0,104370.0,0.03359259]
[1748762729433,0.39718771,104380.0,104370.0,0.05155304]
[1748762729631,0.39718771,104380.0,104370.0,0.05155293]
[1748762730259,0.39718771,104380.0,104370.0,0.05155294]
[1748762730609,0.39718771,104380.0,104370.0,0.04257276]
[1748762730881,0.39718771,104380.0,104370.0,0.05155294]
[1748762731111,0.39718771,104380.0,104370.0,0.05155296]
[1748762731290,0.39718771,104380.0,104370.0,0.05155297]
[1748762731670,0.39718771,104380.0,104370.0,0.05155302]
[1748762731872,0.39718771,104380.0,104370.0,0.051553]
[1748762732124,0.39718771,104380.0,104370.0,0.05155298]
[1748762732762,0.39718771,104380.0,104370.0,0.0335926]
[1748762732963,0.39718771,104380.0,104370.0,0.05155299]
[1748762733608,0.39718771,104380.0,104370.0,0.0335926]
[1748762733812,0.39718771,104380.0,104370.0,0.05155298]
[1748762734189,0.39718771,104380.0,104370.0,0.05155295]
[1748762734391,0.39718771,104380.0,104370.0,0.05155294]
[1748762734814,0.39718771,104380.0,104370.0,0.05155293]
[1748762735014,0.39718771,104380.0,104370.0,0.05155295]
[1748762736189,0.39718771,104380.0,104370.0,0.05155301]
[1748762737338,0.39718771,104380.0,104370.0,0.05015301]
[1748762737539,0.39718771,104380.0,104370.0,0.02321241]
[1748762737756,0.39718771,104380.0,104370.0,0.03219264]
[1748762738091,0.39718771,104380.0,104370.0,0.03219262]
[1748762738725,0.32016188,104380.0,104370.0,0.03219262]
[1748762739473,0.32016188,104380.0,104370.0,0.03219269]
[1748762740088,0.32016188,104380.0,104370.0,0.03219281]
[1748762743077,0.32016188,104380.0,104370.0,0.02321241]
[1748762743620,0.32016188,104380.0,104370.0,0.03219331]
[1748762744393,0.32016188,104380.0,104370.0,0.02321241]
[1748762744598,0.40045771,104380.0,104370.0,0.03219331]
[1748762745004,0.40045771,104380.0,104370.0,0.03219333]
[1748762745371,0.40045771,104380.0,104370.0,0.02321241]
[1748762745673,0.40045771,104380.0,104370.0,0.03219339]
[1748762746250,0.40045771,104380.0,104370.0,0.03219334]
[1748762747469,0.40045771,104380.0,104370.0,0.03219337]
[1748762748052,0.40045771,104380.0,104370.0,0.03219331]
[1748762749127,0.40045771,104380.0,104370.0,0.03219326]
[1748762749519,0.40045771,104380.0,104370.0,0.05015497]
[1748762749955,0.38405771,104380.0,104370.0,0.05015497]
[1748762750263,0.36775771,104380.0,104370.0,0.05015497]
[1748762750508,0.36775771,104380.0,104370.0,0.05015491]
[1748762750722,0.36775771,104380.0,104370.0,0.0321932]
[1748762750937,0.36775771,104380.0,104370.0,0.05015478]
[1748762751381,0.36775771,104380.0,104370.0,0.0501547]
[1748762751861,0.36775771,104380.0,104370.0,0.04117389]
[1748762752062,0.36775771,104380.0,104370.0,0.03219315]
[1748762752235,0.36775771,104380.0,104370.0,0.05015457]
[1748762752449,0.36775771,104380.0,104370.0,0.05015454]
[1748762752818,0.36775771,104380.0,104370.0,0.04117383]
[1748762753018,0.36775771,104380.0,104370.0,0.05015447]
[1748762753428,0.36775771,104380.0,104370.0,0.05015448]
[1748762753758,0.36775771,104380.0,104370.0,0.0501544]
[1748762753959,0.36775771,104380.0,104370.0,0.05015443]
[1748762754196,0.36775771,104380.0,104370.0,0.05015444]
[1748762754344,0.36775771,104380.0,104370.0,0.04117373]
[1748762754548,0.36775771,104380.0,104370.0,0.05015439]
[1748762755546,0.36775771,104380.0,104370.0,0.04117322]
[1748762755758,0.36775771,104380.0,104370.0,0.05015362]
[1748762755937,0.36775771,104380.0,104370.0,0.05015358]
[1748762757177,0.36775771,104380.0,104370.0,0.04374251]
[1748762757396,0.36775771,104380.0,104370.0,0.04374197]
[1748762758255,0.36775771,104380.0,104370.0,0.04374194]
[1748762758427,0.36775771,104380.0,104370.0,0.0437418]
[1748762758624,0.36775771,104380.0,104370.0,0.04374155]
[1748762759214,0.36775771,104380.0,104370.0,0.04374152]
[1748762759414,0.36775771,104380.0,104370.0,0.03476145]
[1748762759618,0.36775771,104380.0,104370.0,0.0437415]
[1748762760052,0.36775771,104380.0,104370.0,0.04374149]
[1748762760411,0.36775771,104380.0,104370.0,0.04374116]
[1748762760901,0.36775771,104380.0,104370.0,0.04374095]
[1748762761524,0.38425771,104380.0,104370.0,0.04374095]
[1748762761656,0.40075771,104380.0,104370.0,0.04374095]
[1748762762833,0.40075771,104380.0,104370.0,0.04374068]
[1748762763047,0.40075771,104380.0,104370.0,0.02578112]
[1748762763172,0.40075771,104380.0,104370.0,0.01680134]
[1748762763637,0.40075771,104380.0,104370.0,0.04374068]
[1748762764214,0.40075771,104380.0,104370.0,0.04374067]
[1748762764642,0.40075771,104380.0,104370.0,0.02578106]
[1748762764855,0.40075771,104380.0,104370.0,0.04374051]
[1748762765254,0.40075771,104380.0,104370.0,0.0437405]
[1748762765611,0.40075771,104380.0,104370.0,0.03476078]
[1748762765824,0.40075771,104380.0,104370.0,0.04374046]
[1748762766025,0.40075771,104380.0,104370.0,0.02578102]
[1748762766253,0.40075771,104380.0,104370.0,0.04374039]
[1748762766409,0.40075771,104380.0,104370.0,0.04374033]
[1748762766609,0.32046188,104380.0,104370.0,0.01680134]
[1748762766848,0.30396188,104380.0,104370.0,0.04374033]
[1748762767427,0.28746188,104380.0,104370.0,0.04374033]
[1748762767648,0.28746188,104380.0,104370.0,0.01680134]
[1748762767847,0.28746188,104380.0,104370.0,0.0437403]
[1748762768245,0.28746188,104380.0,104370.0,0.04374032]
[1748762768659,0.28746188,104380.0,104370.0,0.04374033]
[1748762769014,0.28746188,104380.0,104370.0,0.025781]
[1748762769214,0.28746188,104380.0,104370.0,0.04374035]
[1748762770281,0.28746188,104380.0,104370.0,0.04374038]
[1748762770407,0.28746188,104380.0,104370.0,0.04374048]
[1748762771270,0.28746188,104380.0,104370.0,0.04374062]
[1748762771441,0.28746188,104380.0,104370.0,0.0257811]
[1748762771660,0.28746188,104380.0,104370.0,0.04374068]
[1748762772062,0.30326188,104380.0,104370.0,0.04374068]
[1748762772306,0.30326188,104380.0,104370.0,0.04374074]
[1748762772507,0.31846188,104380.0,104370.0,0.04374074]
[1748762773249,0.31846188,104380.0,104370.0,0.04374108]
[1748762774373,0.31846188,104380.0,104370.0,0.04374153]
[1748762775014,0.00958019,104380.0,104370.0,0.57436482]
[1748762775257,0.20118777,104380.0,104370.0,0.38895521]
[1748762775467,0.20118777,104380.0,104370.0,0.58334113]
[1748762775661,0.20118777,104380.0,104370.0,0.05903769]
[1748762775872,0.234034,104380.0,104370.0,0.05903769]
[1748762776115,0.234034,104380.0,104370.0,0.05903735]
[1748762776331,0.234034,104380.0,104370.0,0.05903748]
[1748762776552,0.234034,104380.0,104370.0,0.04373274]
[1748762776943,0.234034,104380.0,104370.0,0.04373043]
[1748762777147,0.234034,104380.0,104370.0,0.04373022]
[1748762777645,0.234034,104380.0,104370.0,0.04373018]
[1748762778206,0.19160758,104380.0,104370.0,0.04373008]
[1748762778446,0.19160758,104380.0,104370.0,0.04373003]
[1748762778682,0.19160758,104380.0,104370.0,0.04372647]
[1748762779635,0.19160758,104380.0,104370.0,0.04372365]
[1748762779892,0.19160758,104380.0,104370.0,0.01680134]
[1748762780103,0.19160758,104380.0,104370.0,0.04372365]
[1748762780308,0.19160758,104380.0,104370.0,0.04372325]
[1748762780678,0.19160758,104380.0,104370.0,0.04372207]
[1748762781086,0.19160758,104380.0,104370.0,0.34887161]
[1748762781298,0.19160758,104380.0,104370.0,0.36681739]
[1748762781906,0.19160758,104380.0,104370.0,0.36681694]
[1748762782695,0.19160758,104380.0,104370.0,0.36681562]
[1748762783114,0.19160758,104380.0,104370.0,0.35845159]
[1748762783555,0.19160758,104380.0,104370.0,0.39434151]
[1748762783779,0.19160758,104380.0,104370.0,0.38476022]
[1748762784210,0.19160758,104380.0,104370.0,0.37578756]
[1748762784420,0.19160758,104380.0,104370.0,0.38475809]
[1748762784924,0.19160758,104380.0,104370.0,0.37578611]
[1748762785129,0.19160758,104380.0,104370.0,0.38475786]
[1748762785495,0.19160758,104380.0,104370.0,0.35784261]
[1748762785703,0.19160758,104380.0,104370.0,0.38475706]
[1748762786381,0.19160758,104380.0,104370.0,0.37578559]
[1748762786593,0.19160758,104380.0,104370.0,0.38475708]
[1748762786988,0.19160758,104380.0,104370.0,0.38475689]
[1748762787185,0.19160758,104380.0,104370.0,0.3847569]
[1748762788157,0.19160758,104380.0,104370.0,0.36681392]
[1748762788360,0.19160758,104380.0,104370.0,0.38475654]
[1748762789072,0.19160758,104380.0,104370.0,0.38475622]
[1748762789288,0.19160758,104380.0,104370.0,0.38475637]
[1748762789463,0.19160758,104380.0,104370.0,0.38475617]
[1748762789626,0.19160758,104380.0,104370.0,0.35784261]
[1748762789830,0.19160758,104380.0,104370.0,0.38475614]
[1748762790026,0.19160758,104380.0,104370.0,0.38475612]
[1748762790811,0.19160758,104380.0,104370.0,0.36681377]
[1748762791000,0.19160758,104380.0,104370.0,0.38475613]
[1748762791225,0.19160758,104380.0,104370.0,0.3847561]
[1748762791504,0.19160758,104380.0,104370.0,0.36681377]
[1748762791708,0.19160758,104380.0,104370.0,0.38475613]
[1748762791906,0.19160758,104380.0,104370.0,0.38475621]
[1748762792525,0.19160758,104380.0,104370.0,0.38475657]
[1748762792685,0.19160758,104380.0,104370.0,0.37578525]
[1748762792935,0.19160758,104380.0,104370.0,0.35784261]
[1748762793086,0.19160758,104380.0,104370.0,0.06166027]
[1748762793841,0.19160758,104380.0,104370.0,0.06166029]
[1748762794017,0.19160758,104380.0,104370.0,0.06166036]
[1748762794235,0.19160758,104380.0,104370.0,0.06166037]
[1748762794442,0.19160758,104380.0,104370.0,0.04371766]
[1748762794656,0.19160758,104380.0,104370.0,0.06166075]
[1748762794860,0.19160758,104380.0,104370.0,0.0526894]
[1748762795063,0.19160758,104380.0,104370.0,0.38475725]
[1748762795269,0.19160758,104380.0,104370.0,0.38475764]
[1748762795481,0.19160758,104380.0,104370.0,0.38475794]
[1748762795859,0.19160758,104380.0,104370.0,0.38475837]
[1748762796404,0.19160758,104380.0,104370.0,0.38475886]
[1748762796797,0.19160758,104380.0,104370.0,0.38475921]
[1748762797044,0.19160758,104380.0,104370.0,0.04371858]
[1748762797230,0.19160758,104380.0,104370.0,0.36681488]
[1748762797439,0.19160758,104380.0,104370.0,0.38476051]
[1748762797845,0.19160758,104380.0,104370.0,0.38476087]
[1748762798640,0.19160758,104380.0,104370.0,0.38476126]
[1748762798842,0.19160758,104380.0,104370.0,0.37578838]
[1748762799001,0.19160758,104380.0,104370.0,0.38476177]
[1748762799202,0.19160758,104380.0,104370.0,0.38476266]
[1748762799566,0.19160758,104380.0,104370.0,0.3847629]
[1748762800269,0.19160758,104380.0,104370.0,0.38476302]
[1748762800724,0.19160758,104380.0,104370.0,0.38476516]
[1748762801518,0.19160758,104380.0,104370.0,0.38476551]
[1748762802071,0.19160758,104380.0,104370.0,0.38476813]
[1748762802757,0.19160758,104380.0,104370.0,0.38476823]
[1748762802964,0.19160758,104380.0,104370.0,0.36681788]
[1748762803116,0.19160758,104380.0,104370.0,0.38476843]
[1748762803314,0.19160758,104380.0,104370.0,0.3847686]
[1748762803522,0.19160758,104380.0,104370.0,0.38477102]
[1748762804072,0.19160758,104380.0,104370.0,0.38477232]
[1748762804269,0.19160758,104380.0,104370.0,0.38477885]
[1748762805300,0.19160758,104380.0,104370.0,0.38477877]
[1748762805713,0.19160758,104380.0,104370.0,0.38477899]
[1748762805893,0.19160758,104380.0,104370.0,0.38478232]
[1748762806094,0.19160758,104380.0,104370.0,0.38478285]
[1748762806299,0.19160758,104380.0,104370.0,0.38478342]
[1748762806521,0.19160758,104380.0,104370.0,0.384784]
[1748762806729,0.19160758,104380.0,104370.0,0.38478397]
[1748762808324,0.19160758,104380.0,104370.0,0.35784261]
[1748762808644,0.19160758,104380.0,104370.0,0.38478397]
[1748762810029,0.19160758,104380.0,104370.0,0.38478396]
[1748762810664,0.19160758,104380.0,104370.0,0.38478376]
[1748762810836,0.19160758,104380.0,104370.0,0.38478381]
[1748762811987,0.19160758,104380.0,104370.0,0.36682301]
[1748762812189,0.19160758,104380.0,104370.0,0.38478331]
[1748762812802,0.19160758,104380.0,104370.0,0.36682274]
[1748762812924,0.19160758,104380.0,104370.0,0.38478301]
[1748762813584,0.19160758,104380.0,104370.0,0.35784261]
[1748762813787,0.19160758,104380.0,104370.0,0.36682274]
[1748762814008,0.19160758,104380.0,104370.0,0.40155298]
[1748762814197,0.19160758,104380.0,104370.0,0.40155299]
[1748762814409,0.19160758,104380.0,104370.0,0.37461261]
[1748762814586,0.19160758,104380.0,104370.0,0.39257269]
[1748762814799,0.19160758,104380.0,104370.0,0.40155273]
[1748762815534,0.19160758,104380.0,104370.0,0.40155252]
[1748762816354,0.19160758,104380.0,104370.0,0.37461261]
[1748762816503,0.19160758,104380.0,104370.0,0.39257255]
[1748762816690,0.19160758,104380.0,104370.0,0.40155247]
[1748762817043,0.19160758,104380.0,104370.0,0.40155246]
[1748762817444,0.19160758,104380.0,104370.0,0.40155242]
[1748762817856,0.19160758,104380.0,104370.0,0.40155223]
[1748762818716,0.19160758,104380.0,104370.0,0.40155219]
[1748762819117,0.19160758,104380.0,104370.0,0.39257228]
[1748762819317,0.19160758,104380.0,104370.0,0.40155211]
[1748762819498,0.19160758,104380.0,104370.0,0.40155208]
[1748762820391,0.19160758,104380.0,104370.0,0.40155219]
[1748762821225,0.19160758,104380.0,104370.0,0.39257233]
[1748762821356,0.19160758,104380.0,104370.0,0.40155221]
[1748762821558,0.19160758,104380.0,104370.0,0.40155225]
[1748762822914,0.19160758,104380.0,104370.0,0.40155222]
[1748762823458,0.19160758,104380.0,104370.0,0.37461261]
[1748762823657,0.19160758,104380.0,104370.0,0.40155222]
[1748762824544,0.19160758,104380.0,104370.0,0.40155223]
[1748762825021,0.19160758,104380.0,104370.0,0.39257236]
[1748762825195,0.19160758,104380.0,104370.0,0.40155223]
[1748762826049,0.19160758,104380.0,104370.0,0.4015522]
[1748762826552,0.19160758,104380.0,104370.0,0.40155217]
[1748762826763,0.19160758,104380.0,104370.0,0.40155214]
[1748762827178,0.19160758,104380.0,104370.0,0.38359247]
[1748762827390,0.19160758,104380.0,104370.0,0.37461261]
[1748762827595,0.19160758,104380.0,104370.0,0.38359247]
[1748762827733,0.19160758,104380.0,104370.0,0.40155219]
[1748762828157,0.19160758,104380.0,104370.0,0.38359247]
[1748762828357,0.19160758,104380.0,104370.0,0.40155216]
[1748762828771,0.19160758,104380.0,104370.0,0.39257231]
[1748762828993,0.19160758,104380.0,104370.0,0.40155217]
[1748762829209,0.19160758,104380.0,104370.0,0.38359247]
[1748762829427,0.19160758,104380.0,104370.0,0.40155217]
[1748762829665,0.19160758,104380.0,104370.0,0.37461261]
[1748762830140,0.19160758,104380.0,104370.0,0.40155216]
[1748762830349,0.19160758,104380.0,104370.0,0.37461261]
[1748762830526,0.19160758,104380.0,104370.0,0.40155217]
[1748762831761,0.19160758,104380.0,104370.0,0.40155213]
[1748762832662,0.19160758,104380.0,104370.0,0.40155215]
[1748762833107,0.19160758,104380.0,104370.0,0.4015522]
[1748762833330,0.19160758,104380.0,104370.0,0.06947606]
[1748762833560,0.19160758,104380.0,104370.0,0.07845593]
[1748762833973,0.19160758,104380.0,104370.0,0.07845595]
[1748762834608,0.19160758,104380.0,104370.0,0.07845602]
[1748762834881,0.19160758,104380.0,104370.0,0.05151631]
[1748762835081,0.19160758,104380.0,104370.0,0.07845604]
[1748762835297,0.19160758,104380.0,104370.0,0.07845607]
[1748762835733,0.19160758,104380.0,104370.0,0.07845611]
[1748762836403,0.19160758,104380.0,104370.0,0.07845614]
[1748762836923,0.19160758,104380.0,104370.0,0.07845618]
[1748762837158,0.22997598,104380.0,104370.0,0.0784567]
[1748762837390,0.22997598,104380.0,104370.0,0.07845671]
[1748762837579,0.22997598,104380.0,104370.0,0.07845703]